fUST/lending_fUST_20240829
["ID","MTS","AMOUNT","RATE_DAILY","PERIOD"]
[336486724,1724876764679,-151.0,0.00025,7]
[336486725,1724876764706,-151.0,0.00025,7]
[336486726,1724876764733,-663.452618,0.00025,7]
[336486727,1724876764760,-663.452618,0.00025,7]
[336486728,1724876764791,-151.0,0.00025,7]
[336486729,1724876764818,-151.0,0.00025,7]
[336486730,1724876764844,-151.0,0.00025,7]
[336486731,1724876764871,-232.42186,0.00025,7]
[336486732,1724876764898,-232.42186,0.00025,7]
[336486733,1724876764926,-343.450692,0.00025,7]
[336486734,1724876764953,-343.450692,0.00025,7]
[336486735,1724876764981,-151.0,0.00025,7]
[336486736,1724876765008,-281.238631,0.00025,7]
[336486737,1724876765037,-151.0,0.00025,7]
[336486738,1724876765063,-151.0,0.00025,7]
[336486739,1724876765090,-281.238631,0.00025,7]
[336486740,1724876765117,-269.07127,0.00025,7]
[336486741,1724876765144,-151.0,0.00025,7]
[336486742,1724876765171,-151.0,0.00025,7]
[336486743,1724876765200,-269.07127,0.00025,7]
[336486744,1724876765398,-626.948458,0.00025,7]
[336486745,1724876765425,-626.948458,0.00025,7]
[336486746,1724876765451,-151.0,0.00025,7]
[336486747,1724876765479,-151.0,0.00025,7]
[336486748,1724876765506,-151.0,0.00025,7]
[336486749,1724876765536,-234.24748,0.00025,7]
[336486750,1724876765562,-615.068824,0.00025,7]
[336486751,1724876765590,-151.0,0.00025,7]
[336486752,1724876765618,-615.068824,0.00025,7]
[336486753,1724876765645,-1592.379426,0.00025,7]
[336486754,1724876765672,-1592.379426,0.00025,7]
[336486755,1724876765698,-1592.379426,0.00025,7]
[336486756,1724876765723,-1592.379426,0.00025,7]
[336486757,1724876765749,-151.0,0.00025,7]
[336486758,1724876765775,-151.0,0.00025,7]
[336486759,1724876765805,-163.333076,0.00025,7]
[336486760,1724876765831,-163.333076,0.00025,7]
[336486761,1724876765857,-163.333076,0.00025,7]
[336486762,1724876765883,-163.333076,0.00025,7]
[336486763,1724876765909,-262.888218,0.00025,7]
[336486764,1724876765935,-262.888218,0.00025,7]
[336486765,1724876765961,-151.0,0.00025,7]
[336486766,1724876765987,-200.285743,0.00025,7]
[336486767,1724876766014,-153.870784,0.00025,7]
[336486768,1724876766046,-153.870784,0.00025,7]
[336486769,1724876766072,-153.870784,0.00025,7]
[336486770,1724876766098,-153.870784,0.00025,7]
[336486771,1724876766122,-520.000095,0.00025,7]
[336486772,1724876766148,-520.000095,0.00025,7]
[336486773,1724876766175,-520.000095,0.00025,7]
[336486774,1724876766201,-520.000095,0.00025,7]
[336486775,1724876766227,-699.577495,0.00025,7]
[336486776,1724876766252,-699.577495,0.00025,7]
[336486777,1724876766283,-343.450692,0.00025073,7]
[336486778,1724876766308,-343.450692,0.00025073,7]
[336486779,1724876766335,-151.0,0.00025073,7]
[336486780,1724876766361,-283.20397889,0.000253,10]
[336486781,1724876766387,-1592.379426,0.00025348,7]
[336486782,1724876766413,-1592.379426,0.00025348,7]
[336486783,1724876766438,-151.0,0.00025348,7]
[336486784,1724876766463,-4776.57,0.000255,14]
[336486785,1724876766488,-151.0,0.000255,7]
[336486786,1724876766512,-151.0,0.000255,7]
[336486787,1724876766541,-193.945653,0.000255,7]
[336486788,1724876766564,-193.945653,0.000255,7]
[336486789,1724876766589,-151.0,0.000255,7]
[336486790,1724876766613,-2928.27,0.000256,14]
[336486791,1724876766638,-2126.69,0.000256,7]
[336486792,1724876766663,-663.452618,0.000256,7]
[336486793,1724876766688,-663.452618,0.000256,7]
[336486794,1724876766712,-151.0,0.000256,7]
[336486795,1724876766736,-151.0,0.000256,7]
[336486796,1724876766761,-151.0,0.000256,7]
[336486797,1724876766787,-232.42186,0.000256,7]
[336486798,1724876766812,-232.42186,0.000256,7]
[336486799,1724876766835,-151.0,0.000256,7]
[336486800,1724876766859,-151.0,0.000256,7]
[336486801,1724876766883,-179.676228,0.000256,7]
[336486802,1724876766907,-153.870784,0.00025622,7]
[336486803,1724876766931,-153.870784,0.00025622,7]
[336486804,1724876766954,-520.000095,0.00025622,7]
[336486805,1724876766978,-520.000095,0.00025622,7]
[336486806,1724876767002,-699.577495,0.00025623,7]
[336486807,1724876767031,-163.333076,0.0002649,7]
[336486808,1724876767056,-163.333076,0.0002649,7]
[336486809,1724876767083,-153.66,0.000266,31]
[336486810,1724876767110,-153.66,0.000266,31]
[336486811,1724876767136,-153.66,0.000266,31]
[336486812,1724876767162,-153.66,0.000266,31]
[336486813,1724876767190,-153.66,0.000266,31]
[336486814,1724876767216,-153.66,0.000266,31]
[336486815,1724876767243,-153.66,0.000266,31]
[336486816,1724876767268,-258.09783738,0.0002661,30]
[336486817,1724876767295,-4776.57,0.000267,14]
[336486818,1724876767318,-2928.27,0.000269,14]
[336486819,1724876767343,-2126.69,0.000269,7]
[336486820,1724876767369,-1000.0,0.00027,27]
[336486821,1724876767393,-151.0,0.00027,7]
[336486822,1724876767417,-292.380833,0.00027,7]
[336486823,1724876767440,-292.380833,0.00027,7]
[336486824,1724876767463,-151.0,0.00027,7]
[336486825,1724876767488,-151.0,0.00027,7]
[336486826,1724876767511,-151.0,0.00027,7]
[336486827,1724876767539,-151.0,0.00027,7]
[336486828,1724876767563,-158.41699,0.00027,7]
[336486829,1724876767588,-193.945653,0.00027,7]
[336486830,1724876767612,-193.945653,0.00027,7]
[336486831,1724876767636,-151.0,0.00027,7]
[336486832,1724876767660,-194.170204,0.00027,7]
[336486833,1724876767684,-151.0,0.00027,7]
[336486834,1724876767710,-663.452618,0.00027,7]
[336486835,1724876767736,-663.452618,0.00027,7]
[336486836,1724876767761,-151.0,0.00027,7]
[336486837,1724876767790,-151.0,0.00027,7]
[336486838,1724876767814,-151.0,0.00027,7]
[336486839,1724876767839,-232.42186,0.00027,7]
[336486840,1724876767865,-232.42186,0.00027,7]
[336486841,1724876767890,-343.450692,0.00027,7]
[336486842,1724876767916,-343.450692,0.00027,7]
[336486843,1724876767940,-151.0,0.00027,7]
[336486844,1724876767965,-151.0,0.00027,7]
[336486845,1724876767990,-281.238631,0.00027,7]
[336486846,1724876768014,-281.238631,0.00027,7]
[336486847,1724876768045,-269.07127,0.00027,7]
[336486848,1724876768197,-151.0,0.00027,7]
[336486849,1724876768224,-151.0,0.00027,7]
[336486850,1724876768251,-269.07127,0.00027,7]
[336486851,1724876768276,-626.948458,0.00027,7]
[336486852,1724876768305,-626.948458,0.00027,7]
[336486853,1724876768328,-151.0,0.00027,7]
[336486854,1724876768353,-151.0,0.00027,7]
[336486855,1724876768377,-615.068824,0.00027,7]
[336486856,1724876768402,-151.0,0.00027,7]
[336486857,1724876768426,-615.068824,0.00027,7]
[336486858,1724876768449,-1592.379426,0.00027,7]
[336486859,1724876768473,-1592.379426,0.00027,7]
[336486860,1724876768497,-151.0,0.00027,7]
[336486861,1724876768522,-163.333076,0.00027,7]
[336486862,1724876768548,-163.333075,0.00027,7]
[336486863,1724876768572,-262.888218,0.00027,7]
[336486864,1724876768597,-262.888218,0.00027,7]
[336486865,1724876768622,-153.870784,0.00027,7]
[336486866,1724876768647,-153.870782,0.00027,7]
[336486867,1724876768671,-520.000095,0.00027,7]
[336486868,1724876768696,-520.000086,0.00027,7]
[336486869,1724876768730,-699.577495,0.00027,7]
[336486870,1724876768758,-2345.82312569,0.0002728,9]
[336486871,1724876768793,-1100.0,0.00027397,20]
[336486872,1724876768821,-353.32866652,0.00027397,20]
[336486873,1724876768849,-400.0,0.00027397,60]
[336486874,1724876768875,-192.418906,0.00027397,7]
[336486875,1724876768902,-192.418906,0.00027397,7]
[336486876,1724876768930,-192.418906,0.00027397,7]
[336486877,1724876768956,-192.418906,0.00027397,7]
[336486878,1724876768983,-192.418906,0.00027397,7]
[336486879,1724876769010,-192.418906,0.00027397,7]
[336486880,1724876769041,-192.418906,0.00027397,7]
[336486881,1724876769067,-192.418906,0.00027397,7]
[336486882,1724876769094,-192.418906,0.00027397,7]
[336486883,1724876769122,-192.418906,0.00027397,7]
[336486884,1724876769150,-192.418906,0.00027397,7]
[336486885,1724876769178,-192.418906,0.00027397,7]
[336486886,1724876769210,-441.865323,0.00027397,7]
[336486887,1724876769239,-441.865323,0.00027397,7]
[336486888,1724876769266,-441.865323,0.00027397,7]
[336486889,1724876769299,-441.865323,0.00027397,7]
[336486890,1724876769326,-441.865323,0.00027397,7]
[336486891,1724876769352,-441.865323,0.00027397,7]
[336486892,1724876769378,-441.865323,0.00027397,7]
[336486893,1724876769403,-441.865323,0.00027397,7]
[336486894,1724876769428,-441.865323,0.00027397,7]
[336486895,1724876769458,-441.865323,0.00027397,7]
[336486896,1724876769486,-441.865323,0.00027397,7]
[336486897,1724876769512,-441.865323,0.00027397,7]
[336486898,1724876769541,-441.865323,0.00027397,7]
[336486899,1724876769568,-441.865323,0.00027397,7]
[336486900,1724876769595,-441.865323,0.00027397,7]
[336486901,1724876769621,-441.865323,0.00027397,7]
[336486902,1724876769647,-441.865323,0.00027397,7]
[336486903,1724876769673,-441.865323,0.00027397,7]
[336486904,1724876769699,-441.865323,0.00027397,7]
[336486905,1724876769724,-441.865318,0.00027397,7]
[336486906,1724876769749,-1592.379426,0.0002799,7]
[336486907,1724876769775,-1592.379429,0.0002799,7]
[336486908,1724876769806,-151.0,0.0002799,7]
[336486909,1724876769832,-151.0,0.00028,7]
[336486910,1724876769858,-292.380833,0.00028,7]
[336486911,1724876769884,-292.380833,0.00028,7]
[336486912,1724876769909,-151.0,0.00028,7]
[336486913,1724876769936,-151.0,0.00028,7]
[336486914,1724876769962,-151.0,0.00028,7]
[336486915,1724876769989,-192.418906,0.00028,7]
[336486916,1724876770016,-151.0,0.00028,7]
[336486917,1724876770043,-192.418906,0.00028,7]
[336486918,1724876770070,-193.945653,0.00028,7]
[336486919,1724876770097,-193.945653,0.00028,7]
[336486920,1724876770124,-151.0,0.00028,7]
[336486921,1724876770151,-151.0,0.00028,7]
[336486922,1724876770181,-663.452618,0.00028,7]
[336486923,1724876770208,-663.452618,0.00028,7]
[336486924,1724876770235,-151.0,0.00028,7]
[336486925,1724876770261,-151.0,0.00028,7]
[336486926,1724876770294,-232.42186,0.00028,7]
[336486927,1724876770319,-232.42186,0.00028,7]
[336486928,1724876770344,-343.450692,0.00028,7]
[336486929,1724876770370,-243.367343,0.00028,7]
[336486930,1724876770396,-343.450692,0.00028,7]
[336486931,1724876770423,-151.0,0.00028,7]
[336486932,1724876770449,-151.0,0.00028,7]
[336486933,1724876770476,-281.238631,0.00028,7]
[336486934,1724876770504,-281.238631,0.00028,7]
[336486935,1724876770539,-269.07127,0.00028,7]
[336486936,1724876770573,-151.0,0.00028,7]
[336486937,1724876770604,-269.07127,0.00028,7]
[336486938,1724876770633,-626.948458,0.00028,7]
[336486939,1724876770661,-626.948458,0.00028,7]
[336486940,1724876770689,-151.0,0.00028,7]
[336486941,1724876770715,-151.0,0.00028,7]
[336486942,1724876770744,-615.068824,0.00028,7]
[336486943,1724876770772,-151.0,0.00028,7]
[336486944,1724876770806,-615.068824,0.00028,7]
[336486945,1724876770833,-262.888218,0.00028,7]
[336486946,1724876770860,-262.888218,0.00028,7]
[336486947,1724876770886,-4776.57,0.000282,14]
[336486948,1724876770913,-258.904334,0.00028493,8]
[336486949,1724876770940,-258.904334,0.00028493,14]
[336486950,1724876770965,-258.904334,0.00028493,20]
[336486951,1724876770990,-258.904334,0.00028493,26]
[336486952,1724876771154,-258.904334,0.00028493,33]
[336486953,1724876771181,-258.904334,0.00028493,39]
[336486954,1724876771212,-258.904334,0.00028493,45]
[336486955,1724876771239,-258.904334,0.00028493,51]
[336486956,1724876771266,-258.904334,0.00028493,57]
[336486957,1724876771297,-258.904334,0.00028493,64]
[336486958,1724876771323,-258.904334,0.00028493,70]
[336486959,1724876771348,-258.904334,0.00028493,76]
[336486960,1724876771374,-258.904334,0.00028493,82]
[336486961,1724876771399,-258.904334,0.00028493,88]
[336486962,1724876771424,-258.904334,0.00028493,95]
[336486963,1724876771449,-258.904334,0.00028493,101]
[336486964,1724876771474,-258.904334,0.00028493,107]
[336486965,1724876771500,-258.904334,0.00028493,113]
[336486966,1724876771525,-258.904334,0.00028493,120]
[336486967,1724876771555,-399.2509,0.00028674,30]
[336486968,1724876771581,-1046.28039439,0.00028767,120]
[336486969,1724876771608,-2928.27,0.000288,14]
[336486970,1724876771633,-2126.69,0.000288,7]
[336486971,1724876771661,-153.66,0.000294,31]
[336486972,1724876771690,-153.66,0.000294,31]
[336486973,1724876771719,-153.66,0.000294,31]
[336486974,1724876771746,-153.66,0.000294,31]
[336486975,1724876771773,-153.66,0.000294,31]
[336486976,1724876771802,-153.66,0.000294,31]
[336486977,1724876771830,-153.66,0.000294,31]
[336486978,1724876771857,-153.66,0.000294,31]
[336486979,1724876771885,-153.66,0.000294,31]
[336486980,1724876771912,-153.66,0.000294,31]
[336486981,1724876771940,-153.66,0.000294,31]
[336486982,1724876771968,-153.66,0.000294,31]
[336486983,1724876771995,-153.66,0.000294,31]
[336486984,1724876772021,-153.66,0.000294,31]
[336486985,1724876772048,-879.33108114,0.0002988,30]
[336486986,1724876772075,-10000.0,0.0003,20]
[336486987,1724876772099,-1008.37537425,0.0003,7]
[336486988,1724876772123,-387.36870701,0.0003,10]
[336486989,1724876772148,-1000.0,0.0003,20]
[336486990,1724876772173,-4456.12204295,0.0003,10]
[336486991,1724876772198,-36539.37794,0.0003,8]
[336486992,1724876772222,-7840.03150553,0.0003,10]
[336486993,1724876772246,-99999.999999,0.0003,7]
[336486994,1724876772271,-63000.0,0.0003,15]
[336486995,1724876772297,-903.76128988,0.0003,14]
[336486996,1724876772319,-204.47993161,0.0003,30]
[336486997,1724876772343,-450.0,0.0003,120]
[336486998,1724876772369,-277.834892,0.0003,7]
[336486999,1724876772394,-292.380833,0.0003,7]
[336487000,1724876772419,-292.380833,0.0003,7]
[336487001,1724876772443,-292.380833,0.0003,7]
[336487002,1724876772466,-292.380833,0.0003,7]
[336487003,1724876772490,-151.0,0.0003,7]
[336487004,1724876772514,-151.0,0.0003,7]
[336487005,1724876772539,-151.0,0.0003,7]
[336487006,1724876772563,-151.0,0.0003,7]
[336487007,1724876772588,-151.0,0.0003,7]
[336487008,1724876772613,-151.0,0.0003,7]
[336487009,1724876772637,-192.418906,0.0003,7]
[336487010,1724876772661,-192.418906,0.0003,7]
[336487011,1724876772685,-151.0,0.0003,7]
[336487012,1724876772709,-151.0,0.0003,7]
[336487013,1724876772734,-192.418906,0.0003,7]
[336487014,1724876772758,-192.418906,0.0003,7]
[336487015,1724876772786,-193.945653,0.0003,7]
[336487016,1724876772812,-193.945653,0.0003,7]
[336487017,1724876772835,-193.945653,0.0003,7]
[336487018,1724876772859,-193.945653,0.0003,7]
[336487019,1724876772885,-151.0,0.0003,7]
[336487020,1724876772911,-151.0,0.0003,7]
[336487021,1724876772935,-151.0,0.0003,7]
[336487022,1724876772960,-151.0,0.0003,7]
[336487023,1724876772986,-663.452618,0.0003,7]
[336487024,1724876773012,-663.452618,0.0003,7]
[336487025,1724876773041,-663.452618,0.0003,7]
[336487026,1724876773066,-663.452618,0.0003,7]
[336487027,1724876773091,-151.0,0.0003,7]
[336487028,1724876773115,-151.0,0.0003,7]
[336487029,1724876773138,-212.887068,0.0003,7]
[336487030,1724876773162,-232.42186,0.0003,7]
[336487031,1724876773189,-232.42186,0.0003,7]
[336487032,1724876773214,-232.42186,0.0003,7]
[336487033,1724876773240,-232.42186,0.0003,7]
[336487034,1724876773265,-343.450692,0.0003,7]
[336487035,1724876773291,-343.450692,0.0003,7]
[336487036,1724876773316,-243.367343,0.0003,7]
[336487037,1724876773341,-243.367343,0.0003,7]
[336487038,1724876773365,-343.450692,0.0003,7]
[336487039,1724876773390,-343.450692,0.0003,7]
[336487040,1724876773415,-151.0,0.0003,7]
[336487041,1724876773440,-151.0,0.0003,7]
[336487042,1724876773465,-151.0,0.0003,7]
[336487043,1724876773490,-1200.0,0.0003,28]
[336487044,1724876773515,-1200.0,0.0003,28]
[336487045,1724876773543,-1200.0,0.0003,28]
[336487046,1724876773567,-1200.0,0.0003,28]
[336487047,1724876773591,-1200.0,0.0003,28]
[336487048,1724876773616,-1200.0,0.0003,28]
[336487049,1724876773641,-1200.0,0.0003,28]
[336487050,1724876773666,-1200.0,0.0003,28]
[336487051,1724876773692,-1200.0,0.0003,28]
[336487052,1724876773718,-281.238631,0.0003,7]
[336487053,1724876773743,-1200.0,0.0003,28]
[336487054,1724876773769,-281.238631,0.0003,7]
[336487055,1724876773797,-1200.0,0.0003,28]
[336487056,1724876773952,-1200.0,0.0003,28]
[336487057,1724876773980,-1200.0,0.0003,28]
[336487058,1724876774008,-1200.0,0.0003,28]
[336487059,1724876774037,-1200.0,0.0003,28]
[336487060,1724876774063,-1200.0,0.0003,28]
[336487061,1724876774089,-1200.0,0.0003,28]
[336487062,1724876774115,-1200.0,0.0003,28]
[336487063,1724876774140,-1200.0,0.0003,28]
[336487064,1724876774166,-281.238631,0.0003,7]
[336487065,1724876774195,-1200.0,0.0003,28]
[336487066,1724876774220,-281.238631,0.0003,7]
[336487067,1724876774245,-1200.0,0.0003,28]
[336487068,1724876774295,-269.07127,0.0003,7]
[336487069,1724876774326,-269.07127,0.0003,7]
[336487070,1724876774355,-1200.0,0.0003,28]
[336487071,1724876774383,-1200.0,0.0003,28]
[336487072,1724876774410,-1200.0,0.0003,28]
[336487073,1724876774437,-1200.0,0.0003,28]
[336487074,1724876774463,-1200.0,0.0003,28]
[336487075,1724876774490,-151.0,0.0003,7]
[336487076,1724876774516,-1200.0,0.0003,28]
[336487077,1724876774549,-151.0,0.0003,7]
[336487078,1724876774578,-1200.0,0.0003,28]
[336487079,1724876774605,-1200.0,0.0003,28]
[336487080,1724876774632,-1200.0,0.0003,28]
[336487081,1724876774660,-269.07127,0.0003,7]
[336487082,1724876774687,-1200.0,0.0003,28]
[336487083,1724876774714,-269.07127,0.0003,7]
[336487084,1724876774740,-1200.0,0.0003,28]
[336487085,1724876774766,-1200.0,0.0003,28]
[336487086,1724876774797,-1200.0,0.0003,28]
[336487087,1724876774824,-1200.0,0.0003,28]
[336487088,1724876774851,-1200.0,0.0003,28]
[336487089,1724876774878,-1200.0,0.0003,28]
[336487090,1724876774905,-1200.0,0.0003,28]
[336487091,1724876774934,-1200.0,0.0003,28]
[336487092,1724876774961,-1200.0,0.0003,28]
[336487093,1724876774987,-1200.0,0.0003,28]
[336487094,1724876775019,-1200.0,0.0003,28]
[336487095,1724876775055,-1200.0,0.0003,28]
[336487096,1724876775083,-1200.0,0.0003,28]
[336487097,1724876775110,-1200.0,0.0003,28]
[336487098,1724876775138,-1200.0,0.0003,28]
[336487099,1724876775166,-1200.0,0.0003,28]
[336487100,1724876775197,-1200.0,0.0003,28]
[336487101,1724876775225,-1200.0,0.0003,28]
[336487102,1724876775253,-1200.0,0.0003,28]
[336487103,1724876775289,-1200.0,0.0003,28]
[336487104,1724876775317,-1200.0,0.0003,28]
[336487105,1724876775345,-1200.0,0.0003,28]
[336487106,1724876775371,-1200.0,0.0003,28]
[336487107,1724876775399,-626.948458,0.0003,7]
[336487108,1724876775427,-626.948458,0.0003,7]
[336487109,1724876775457,-151.0,0.0003,7]
[336487110,1724876775484,-151.0,0.0003,7]
[336487111,1724876775510,-615.068824,0.0003,7]
[336487112,1724876775542,-249.012916,0.0003,7]
[336487113,1724876775569,-615.068824,0.0003,7]
[336487114,1724876775596,-173.1,0.0003,120]
[336487115,1724876775623,-262.888218,0.0003,7]
[336487116,1724876775651,-262.888218,0.0003,7]
[336487117,1724876775677,-151.0,0.0003,120]
[336487118,1724876775703,-400.0,0.00030137,60]
[336487119,1724876775731,-281.238631,0.00030313,7]
[336487120,1724876775764,-281.238631,0.00030313,7]
[336487121,1724876775792,-281.238631,0.00030313,7]
[336487122,1724876775820,-281.238631,0.00030313,7]
[336487123,1724876775850,-281.238631,0.00030313,7]
[336487124,1724876775877,-281.238623,0.00030313,7]
[336487125,1724876775904,-269.07127,0.00030313,7]
[336487126,1724876775932,-269.07127,0.00030313,7]
[336487127,1724876775959,-269.07127,0.00030313,7]
[336487128,1724876775985,-151.0,0.00030313,7]
[336487129,1724876776012,-151.0,0.00030313,7]
[336487130,1724876776041,-151.0,0.00030313,7]
[336487131,1724876776066,-269.07127,0.00030313,7]
[336487132,1724876776092,-269.07127,0.00030313,7]
[336487133,1724876776117,-269.071275,0.00030313,7]
[336487134,1724876776143,-626.948458,0.00030313,7]
[336487135,1724876776169,-626.948458,0.00030313,7]
[336487136,1724876776198,-626.948458,0.00030313,7]
[336487137,1724876776225,-626.948458,0.00030313,7]
[336487138,1724876776251,-626.948458,0.00030313,7]
[336487139,1724876776279,-626.948458,0.00030313,7]
[336487140,1724876776307,-626.948458,0.00030313,7]
[336487141,1724876776334,-626.948451,0.00030313,7]
[336487142,1724876776361,-151.0,0.00030313,7]
[336487143,1724876776388,-151.0,0.00030313,7]
[336487144,1724876776414,-151.0,0.00030313,7]
[336487145,1724876776440,-151.0,0.00030313,7]
[336487146,1724876776467,-278.323038,0.00030313,7]
[336487147,1724876776506,-615.068824,0.00030313,7]
[336487148,1724876776534,-615.068824,0.00030313,7]
[336487149,1724876776563,-615.068824,0.00030313,7]
[336487150,1724876776590,-615.068824,0.00030313,7]
[336487151,1724876776617,-615.068824,0.00030313,7]
[336487152,1724876776643,-615.068824,0.00030313,7]
[336487153,1724876776669,-615.068824,0.00030313,7]
[336487154,1724876776698,-615.06883,0.00030313,7]
[336487155,1724876776726,-262.888218,0.00030313,7]
[336487156,1724876776753,-262.888218,0.00030313,7]
[336487157,1724876776779,-262.888218,0.00030313,7]
[336487158,1724876776807,-262.888218,0.00030313,7]
[336487159,1724876776833,-262.888218,0.00030313,7]
[336487160,1724876777055,-262.888218,0.00030313,7]
[336487161,1724876777083,-262.888218,0.00030313,7]
[336487162,1724876777115,-262.888216,0.00030313,7]
[336487163,1724876777144,-160.0,0.00030326,10]
[336487164,1724876777172,-160.0,0.00030326,10]
[336487165,1724876777204,-160.0,0.00030326,10]
[336487166,1724876777232,-292.380833,0.00030327,7]
[336487167,1724876777259,-292.380827,0.00030327,7]
[336487168,1724876777290,-151.0,0.00030327,7]
[336487169,1724876777316,-151.0,0.00030327,7]
[336487170,1724876777344,-151.0,0.00030327,7]
[336487171,1724876777371,-192.418906,0.00030327,7]
[336487172,1724876777397,-151.0,0.00030327,7]
[336487173,1724876777422,-151.0,0.00030327,7]
[336487174,1724876777447,-151.0,0.00030327,7]
[336487175,1724876777472,-192.418902,0.00030327,7]
[336487176,1724876777496,-193.945653,0.00030327,7]
[336487177,1724876777521,-193.945653,0.00030327,7]
[336487178,1724876777548,-193.945653,0.00030327,7]
[336487179,1724876777572,-193.945653,0.00030327,7]
[336487180,1724876777598,-193.945653,0.00030327,7]
[336487181,1724876777622,-193.945653,0.00030327,7]
[336487182,1724876777658,-151.0,0.00030327,7]
[336487183,1724876777686,-151.0,0.00030327,7]
[336487184,1724876777713,-247.849488,0.00030327,7]
[336487185,1724876777740,-663.452618,0.00030327,7]
[336487186,1724876777766,-663.452618,0.00030327,7]
[336487187,1724876777794,-663.452618,0.00030327,7]
[336487188,1724876777821,-663.452618,0.00030327,7]
[336487189,1724876777848,-663.452618,0.00030327,7]
[336487190,1724876777875,-663.452626,0.00030327,7]
[336487191,1724876777901,-158.684495,0.00030327,7]
[336487192,1724876777927,-232.42186,0.00030327,7]
[336487193,1724876777954,-232.42186,0.00030327,7]
[336487194,1724876777979,-232.42186,0.00030327,7]
[336487195,1724876778006,-232.42186,0.00030327,7]
[336487196,1724876778032,-232.42186,0.00030327,7]
[336487197,1724876778060,-232.421866,0.00030327,7]
[336487198,1724876778086,-343.450692,0.00030327,7]
[336487199,1724876778114,-343.450692,0.00030327,7]
[336487200,1724876778142,-343.450692,0.00030327,7]
[336487201,1724876778172,-243.367343,0.00030327,7]
[336487202,1724876778211,-243.367343,0.00030327,7]
[336487203,1724876778242,-243.367345,0.00030327,7]
[336487204,1724876778274,-343.450692,0.00030327,7]
[336487205,1724876778311,-343.450692,0.00030327,7]
[336487206,1724876778338,-343.450695,0.00030327,7]
[336487207,1724876778364,-151.0,0.00030327,7]
[336487208,1724876778390,-151.0,0.00030327,7]
[336487209,1724876778416,-151.0,0.00030327,7]
[336487210,1724876778443,-4776.57,0.000305,14]
[336487211,1724876778470,-173.1,0.00030986,120]
[336487212,1724876778496,-151.0,0.00031425,120]
[336487213,1724876778522,-10148.75479659,0.000315,7]
[336487214,1724876778548,-2928.27,0.000318,14]
[336487215,1724876778575,-2126.69,0.000318,7]
[336487216,1724876778602,-173.1,0.00031973,120]
[336487217,1724876778630,-10000.0,0.00032,22]
[336487218,1724876778656,-150.0,0.00032,30]
[336487219,1724876778683,-29037.46345194,0.0003212,10]
[336487220,1724876778715,-153.66,0.000322,31]
[336487221,1724876778745,-153.66,0.000322,31]
[336487222,1724876778774,-153.66,0.000322,31]
[336487223,1724876778809,-153.66,0.000322,31]